[Event "Live Chess"]
[Site "Chess.com"]
[Date "2010.12.08"]
[Round "-"]
[White "hipposcottimus"]
[Black "vviinncceenntt"]
[Result "1/2-1/2"]
[CurrentPosition "8/8/8/2k5/8/2K5/8/8 w - -"]
[Timezone "UTC"]
[ECO "C41"]
[ECOUrl "https://www.chess.com/openings/Philidor-Defense-3.Bc4"]
[UTCDate "2010.12.08"]
[UTCTime "02:35:16"]
[WhiteElo "1398"]
[BlackElo "1385"]
[TimeControl "600"]
[Termination "Game drawn by insufficient material"]
[StartTime "02:35:16"]
[EndDate "2010.12.08"]
[EndTime "02:53:23"]
[Link "https://www.chess.com/game/live/75116919"]

1. e4 {[%clk 0:10:00]} 1... e5 {[%clk 0:10:00]} 2. Nf3 {[%clk 0:09:59]} 2... d6 {[%clk 0:09:58.7]} 3. Bc4 {[%clk 0:09:58.6]} 3... Be6 {[%clk 0:09:57.6]} 4. Na3 {[%clk 0:09:55.4]} 4... Bxc4 {[%clk 0:09:55.9]} 5. Nxc4 {[%clk 0:09:55.1]} 5... Nf6 {[%clk 0:09:54.7]} 6. d3 {[%clk 0:09:53.4]} 6... Be7 {[%clk 0:09:53.3]} 7. Ne3 {[%clk 0:09:53]} 7... O-O {[%clk 0:09:52.3]} 8. O-O {[%clk 0:09:52.7]} 8... a6 {[%clk 0:09:49.9]} 9. d4 {[%clk 0:09:52.4]} 9... exd4 {[%clk 0:09:48]} 10. Nxd4 {[%clk 0:09:52]} 10... Qd7 {[%clk 0:09:43.6]} 11. f3 {[%clk 0:09:46.2]} 11... Nc6 {[%clk 0:09:42.3]} 12. Ndf5 {[%clk 0:09:42.4]} 12... Ne5 {[%clk 0:09:37]} 13. Qe1 {[%clk 0:09:40.8]} 13... Ng6 {[%clk 0:09:10.7]} 14. Qg3 {[%clk 0:09:21.5]} 14... h6 {[%clk 0:08:52.5]} 15. Ng4 {[%clk 0:09:11.5]} 15... Nxg4 {[%clk 0:08:50.3]} 16. Qxg4 {[%clk 0:09:07.1]} 16... Qe6 {[%clk 0:08:29.6]} 17. Bxh6 {[%clk 0:06:30]} 17... gxh6 {[%clk 0:08:18.7]} 18. Qh5 {[%clk 0:05:48.8]} 18... Nf4 {[%clk 0:07:10.7]} 19. Qg4+ {[%clk 0:04:43.8]} 19... Ng6 {[%clk 0:07:01.4]} 20. Nxh6+ {[%clk 0:04:40.2]} 20... Kg7 {[%clk 0:06:33.8]} 21. Nf5+ {[%clk 0:04:35.4]} 21... Kg8 {[%clk 0:05:55.8]} 22. f4 {[%clk 0:04:29.8]} 22... Qf6 {[%clk 0:05:14.3]} 23. Rf3 {[%clk 0:03:53.9]} 23... Rfc8 {[%clk 0:03:55.1]} 24. Nxe7+ {[%clk 0:03:22.5]} 24... Qxe7 {[%clk 0:03:45.8]} 25. f5 {[%clk 0:03:21.2]} 25... Qh4 {[%clk 0:03:35.1]} 26. Rg3 {[%clk 0:02:49.9]} 26... Qxg4 {[%clk 0:03:11.7]} 27. Rxg4 {[%clk 0:02:48.4]} 27... Kg7 {[%clk 0:03:07.4]} 28. fxg6 {[%clk 0:02:48]} 28... fxg6 {[%clk 0:03:06.1]} 29. Rf1 {[%clk 0:02:45.3]} 29... Rf8 {[%clk 0:03:04.7]} 30. Re1 {[%clk 0:02:43.4]} 30... Rae8 {[%clk 0:02:58.5]} 31. Re3 {[%clk 0:02:41.9]} 31... c6 {[%clk 0:02:34.3]} 32. c3 {[%clk 0:02:38.3]} 32... b6 {[%clk 0:02:32.1]} 33. b3 {[%clk 0:02:36.7]} 33... a5 {[%clk 0:02:30.9]} 34. a3 {[%clk 0:02:35.4]} 34... b5 {[%clk 0:02:29.8]} 35. h4 {[%clk 0:02:32.3]} 35... Kh6 {[%clk 0:02:25.8]} 36. Kh2 {[%clk 0:02:28.8]} 36... Rg8 {[%clk 0:02:20.2]} 37. g3 {[%clk 0:02:19.8]} 37... g5 {[%clk 0:02:19.3]} 38. hxg5+ {[%clk 0:02:14.5]} 38... Rxg5 {[%clk 0:02:18.1]} 39. Rh4+ {[%clk 0:02:14.3]} 39... Kg6 {[%clk 0:02:16.4]} 40. Kh3 {[%clk 0:02:12.6]} 40... d5 {[%clk 0:02:08.2]} 41. b4 {[%clk 0:01:54.4]} 41... dxe4 {[%clk 0:02:06.3]} 42. Rhxe4 {[%clk 0:01:52.5]} 42... Rxe4 {[%clk 0:02:04]} 43. Rxe4 {[%clk 0:01:50.8]} 43... axb4 {[%clk 0:01:57.6]} 44. axb4 {[%clk 0:01:50.2]} 44... Rf5 {[%clk 0:01:51.2]} 45. Re6+ {[%clk 0:01:48.2]} 45... Rf6 {[%clk 0:01:50.2]} 46. Rxf6+ {[%clk 0:01:42.5]} 46... Kxf6 {[%clk 0:01:49.2]} 47. Kh4 {[%clk 0:01:41.6]} 47... Kg6 {[%clk 0:01:48.3]} 48. g4 {[%clk 0:01:40.6]} 48... Kh6 {[%clk 0:01:46.6]} 49. g5+ {[%clk 0:01:39.6]} 49... Kg6 {[%clk 0:01:45.7]} 50. Kg4 {[%clk 0:01:39.2]} 50... Kg7 {[%clk 0:01:42.6]} 51. Kh5 {[%clk 0:01:38.3]} 51... Kh7 {[%clk 0:01:37.1]} 52. g6+ {[%clk 0:01:37.5]} 52... Kg7 {[%clk 0:01:35.9]} 53. Kg5 {[%clk 0:01:37.2]} 53... Kg8 {[%clk 0:01:34]} 54. Kh6 {[%clk 0:01:36.9]} 54... Kh8 {[%clk 0:01:31]} 55. g7+ {[%clk 0:01:35.4]} 55... Kg8 {[%clk 0:01:29.6]} 56. Kg5 {[%clk 0:01:24]} 56... Kxg7 {[%clk 0:01:27.6]} 57. Kf5 {[%clk 0:01:23.7]} 57... Kf7 {[%clk 0:01:26.6]} 58. Ke5 {[%clk 0:01:23.4]} 58... Ke7 {[%clk 0:01:25.5]} 59. Kd4 {[%clk 0:01:23.1]} 59... Kd7 {[%clk 0:01:24.6]} 60. Kc5 {[%clk 0:01:21.6]} 60... Kc7 {[%clk 0:01:23.3]} 61. c4 {[%clk 0:01:20.3]} 61... bxc4 {[%clk 0:01:21.3]} 62. Kxc4 {[%clk 0:01:20.1]} 62... Kb6 {[%clk 0:01:20.2]} 63. Kd4 {[%clk 0:01:16.5]} 63... Kb5 {[%clk 0:01:18.3]} 64. Kc3 {[%clk 0:01:14]} 64... c5 {[%clk 0:01:14.6]} 65. bxc5 {[%clk 0:01:11.8]} 65... Kxc5 {[%clk 0:01:13.7]} 1/2-1/2

[Event "Live Chess"]
[Site "Chess.com"]
[Date "2010.12.08"]
[Round "-"]
[White "chessmuntu"]
[Black "hipposcottimus"]
[Result "0-1"]
[CurrentPosition "6k1/pr4pp/1r6/1P6/P1n5/8/5PPP/4R1K1 w - -"]
[Timezone "UTC"]
[ECO "D10"]
[ECOUrl "https://www.chess.com/openings/Slav-Defense-Exchange-Variation"]
[UTCDate "2010.12.08"]
[UTCTime "02:28:19"]
[WhiteElo "1573"]
[BlackElo "1700"]
[TimeControl "60"]
[Termination "hipposcottimus won on time"]
[StartTime "02:28:19"]
[EndDate "2010.12.08"]
[EndTime "02:30:25"]
[Link "https://www.chess.com/game/live/75115420"]

1. d4 {[%clk 0:01:00]} 1... d5 {[%clk 0:01:00]} 2. c4 {[%clk 0:00:59.7]} 2... c6 {[%clk 0:00:59.8]} 3. cxd5 {[%clk 0:00:58.6]} 3... Nd7 {[%clk 0:00:59.6]} 4. Nc3 {[%clk 0:00:55.8]} 4... Ndf6 {[%clk 0:00:58.6]} 5. dxc6 {[%clk 0:00:54.7]} 5... bxc6 {[%clk 0:00:57.4]} 6. e3 {[%clk 0:00:52]} 6... e6 {[%clk 0:00:57]} 7. Be2 {[%clk 0:00:50.7]} 7... Bb4 {[%clk 0:00:56.5]} 8. Nf3 {[%clk 0:00:49.7]} 8... Ne7 {[%clk 0:00:55.7]} 9. O-O {[%clk 0:00:48.3]} 9... Ned5 {[%clk 0:00:54.9]} 10. Qc2 {[%clk 0:00:45.7]} 10... O-O {[%clk 0:00:52.3]} 11. a3 {[%clk 0:00:44.7]} 11... Bxc3 {[%clk 0:00:49.9]} 12. bxc3 {[%clk 0:00:44.1]} 12... Ne4 {[%clk 0:00:48.3]} 13. Bb2 {[%clk 0:00:42.4]} 13... Nef6 {[%clk 0:00:43.3]} 14. c4 {[%clk 0:00:41.4]} 14... Nc7 {[%clk 0:00:40.3]} 15. Qc3 {[%clk 0:00:39]} 15... Ba6 {[%clk 0:00:39.5]} 16. e4 {[%clk 0:00:37]} 16... e5 {[%clk 0:00:38.6]} 17. dxe5 {[%clk 0:00:34.1]} 17... Nxe4 {[%clk 0:00:38.3]} 18. Qd3 {[%clk 0:00:32]} 18... Nc5 {[%clk 0:00:37.3]} 19. Qxd8 {[%clk 0:00:29.3]} 19... Raxd8 {[%clk 0:00:37]} 20. e6 {[%clk 0:00:26.9]} 20... Na4 {[%clk 0:00:36.6]} 21. exf7+ {[%clk 0:00:24.9]} 21... Rxf7 {[%clk 0:00:35.7]} 22. Be5 {[%clk 0:00:20.7]} 22... Ne6 {[%clk 0:00:28.1]} 23. Bd1 {[%clk 0:00:16.4]} 23... Nac5 {[%clk 0:00:27.3]} 24. Bd6 {[%clk 0:00:13.1]} 24... Rxd6 {[%clk 0:00:25.3]} 25. Ne5 {[%clk 0:00:09.5]} 25... Re7 {[%clk 0:00:21.6]} 26. Bf3 {[%clk 0:00:08.2]} 26... Nd3 {[%clk 0:00:18.8]} 27. Bxc6 {[%clk 0:00:04.8]} 27... Nxe5 {[%clk 0:00:17.3]} 28. Bb5 {[%clk 0:00:03.1]} 28... Bxb5 {[%clk 0:00:15.3]} 29. cxb5 {[%clk 0:00:02.8]} 29... Rb6 {[%clk 0:00:15]} 30. a4 {[%clk 0:00:02.3]} 30... Reb7 {[%clk 0:00:14.2]} 31. Rae1 {[%clk 0:00:02.3]} 31... Nc4 {[%clk 0:00:12.3]} 32. Rxe6 {[%clk 0:00:01.7]} 32... Rxe6 {[%clk 0:00:10.7]} 33. Re1 {[%clk 0:00:01.3]} 33... Reb6 {[%clk 0:00:10.1]} 0-1

[Event "Live Chess"]
[Site "Chess.com"]
[Date "2010.12.08"]
[Round "-"]
[White "hipposcottimus"]
[Black "chessmuntu"]
[Result "1-0"]
[CurrentPosition "rn1B1b1r/pp6/2pk2Q1/3p3p/3P4/8/PPP4P/RN2KB1R b KQ -"]
[Timezone "UTC"]
[ECO "B12"]
[ECOUrl "https://www.chess.com/openings/Caro-Kann-Defense-Advance-Variation-3...Bf5"]
[UTCDate "2010.12.08"]
[UTCTime "02:27:22"]
[WhiteElo "1695"]
[BlackElo "1578"]
[TimeControl "60"]
[Termination "hipposcottimus won by resignation"]
[StartTime "02:27:22"]
[EndDate "2010.12.08"]
[EndTime "02:28:05"]
[Link "https://www.chess.com/game/live/75115192"]

1. e4 {[%clk 0:01:00]} 1... c6 {[%clk 0:01:00]} 2. d4 {[%clk 0:00:58.4]} 2... d5 {[%clk 0:01:00]} 3. e5 {[%clk 0:00:58.2]} 3... Bf5 {[%clk 0:00:59.4]} 4. f4 {[%clk 0:00:58]} 4... e6 {[%clk 0:00:58.8]} 5. Nf3 {[%clk 0:00:57.7]} 5... Bg6 {[%clk 0:00:58.2]} 6. g4 {[%clk 0:00:57.4]} 6... h6 {[%clk 0:00:56.1]} 7. f5 {[%clk 0:00:56.9]} 7... exf5 {[%clk 0:00:54.9]} 8. Nh4 {[%clk 0:00:54.9]} 8... fxg4 {[%clk 0:00:53.3]} 9. Nxg6 {[%clk 0:00:53.8]} 9... fxg6 {[%clk 0:00:50.9]} 10. Qxg4 {[%clk 0:00:53.4]} 10... h5 {[%clk 0:00:44.3]} 11. Qxg6+ {[%clk 0:00:52.5]} 11... Ke7 {[%clk 0:00:43.5]} 12. Bg5+ {[%clk 0:00:50.9]} 12... Nf6 {[%clk 0:00:40.4]} 13. exf6+ {[%clk 0:00:50.6]} 13... gxf6 {[%clk 0:00:39.6]} 14. Bxf6+ {[%clk 0:00:50.1]} 14... Kd6 {[%clk 0:00:35.1]} 15. Bxd8+ {[%clk 0:00:49.8]} 1-0

[Event "Live Chess"]
[Site "Chess.com"]
[Date "2010.12.08"]
[Round "-"]
[White "chessmuntu"]
[Black "hipposcottimus"]
[Result "1-0"]
[CurrentPosition "5r2/ppp3p1/5pk1/4p3/3rP1R1/P2P2K1/BP6/8 b - -"]
[Timezone "UTC"]
[ECO "C24"]
[ECOUrl "https://www.chess.com/openings/Bishops-Opening-Berlin-Defense-3.d3-Nc6"]
[UTCDate "2010.12.08"]
[UTCTime "02:24:55"]
[WhiteElo "1584"]
[BlackElo "1689"]
[TimeControl "60"]
[Termination "chessmuntu won on time"]
[StartTime "02:24:55"]
[EndDate "2010.12.08"]
[EndTime "02:27:08"]
[Link "https://www.chess.com/game/live/75114669"]

1. e4 {[%clk 0:01:00]} 1... e5 {[%clk 0:01:00]} 2. Bc4 {[%clk 0:00:59.4]} 2... Nf6 {[%clk 0:00:58.7]} 3. d3 {[%clk 0:00:57.5]} 3... Nc6 {[%clk 0:00:58.1]} 4. a3 {[%clk 0:00:56.7]} 4... d5 {[%clk 0:00:56.1]} 5. Ba2 {[%clk 0:00:56.2]} 5... Be7 {[%clk 0:00:54.4]} 6. Nf3 {[%clk 0:00:54.6]} 6... O-O {[%clk 0:00:53.9]} 7. O-O {[%clk 0:00:52.9]} 7... d4 {[%clk 0:00:53.1]} 8. c3 {[%clk 0:00:51.1]} 8... Bc5 {[%clk 0:00:50.1]} 9. cxd4 {[%clk 0:00:48.8]} 9... Nxd4 {[%clk 0:00:46.9]} 10. Bg5 {[%clk 0:00:47.2]} 10... Bg4 {[%clk 0:00:40.5]} 11. Nbd2 {[%clk 0:00:44.4]} 11... Qd6 {[%clk 0:00:37.5]} 12. h3 {[%clk 0:00:42]} 12... Bh5 {[%clk 0:00:36.2]} 13. Qa4 {[%clk 0:00:34.9]} 13... Nxf3+ {[%clk 0:00:31.3]} 14. Nxf3 {[%clk 0:00:29.4]} 14... Bxf3 {[%clk 0:00:30.6]} 15. gxf3 {[%clk 0:00:27.9]} 15... Nh5 {[%clk 0:00:29.9]} 16. Bh4 {[%clk 0:00:26.1]} 16... Nf4 {[%clk 0:00:29.3]} 17. Kh2 {[%clk 0:00:22.2]} 17... Qg6 {[%clk 0:00:28.6]} 18. Bg3 {[%clk 0:00:21.2]} 18... Ne2 {[%clk 0:00:23.9]} 19. Rg1 {[%clk 0:00:18.8]} 19... Qf6 {[%clk 0:00:19.5]} 20. Qd7 {[%clk 0:00:13.7]} 20... Qxf3 {[%clk 0:00:17.1]} 21. Qg4 {[%clk 0:00:13]} 21... Qxg4 {[%clk 0:00:14]} 22. hxg4 {[%clk 0:00:11.9]} 22... Nxg3 {[%clk 0:00:13.2]} 23. Rxg3 {[%clk 0:00:11]} 23... Bxf2 {[%clk 0:00:12.4]} 24. Rag1 {[%clk 0:00:09.2]} 24... Bxg3+ {[%clk 0:00:11.5]} 25. Rxg3 {[%clk 0:00:08.6]} 25... Rad8 {[%clk 0:00:10.8]} 26. g5 {[%clk 0:00:07.1]} 26... Rd4 {[%clk 0:00:10]} 27. g6 {[%clk 0:00:06.5]} 27... hxg6 {[%clk 0:00:07.8]} 28. Rxg6 {[%clk 0:00:05.2]} 28... Kh7 {[%clk 0:00:05.8]} 29. Rg3 {[%clk 0:00:04.7]} 29... f6 {[%clk 0:00:05.1]} 30. Rh3+ {[%clk 0:00:04.6]} 30... Kg6 {[%clk 0:00:03.7]} 31. Kg3 {[%clk 0:00:04.1]} 31... Kg5 {[%clk 0:00:02.7]} 32. Rh4 {[%clk 0:00:03.2]} 32... Kg6 {[%clk 0:00:00.2]} 33. Rg4+ {[%clk 0:00:03.2]} 1-0

[Event "Live Chess"]
[Site "Chess.com"]
[Date "2010.12.08"]
[Round "-"]
[White "hipposcottimus"]
[Black "chessmuntu"]
[Result "1-0"]
[CurrentPosition "5r2/2p1k3/p4n2/1pP1p1Bp/4P1pP/2P3P1/P5B1/2KR1R2 b - -"]
[Timezone "UTC"]
[ECO "B07"]
[ECOUrl "https://www.chess.com/openings/Pirc-Defense-Maroczy-Defense-3.dxe5-dxe5-4.Qxd8-Kxd8"]
[UTCDate "2010.12.08"]
[UTCTime "02:23:23"]
[WhiteElo "1699"]
[BlackElo "1572"]
[TimeControl "60"]
[Termination "hipposcottimus won by resignation"]
[StartTime "02:23:23"]
[EndDate "2010.12.08"]
[EndTime "02:24:42"]
[Link "https://www.chess.com/game/live/75114371"]

1. e4 {[%clk 0:01:00]} 1... d6 {[%clk 0:01:00]} 2. d4 {[%clk 0:00:58.3]} 2... e5 {[%clk 0:01:00]} 3. dxe5 {[%clk 0:00:57]} 3... dxe5 {[%clk 0:00:57.1]} 4. Qxd8+ {[%clk 0:00:56.6]} 4... Kxd8 {[%clk 0:00:56.1]} 5. Nf3 {[%clk 0:00:56.3]} 5... Bd7 {[%clk 0:00:55.9]} 6. Nxe5 {[%clk 0:00:55.4]} 6... Be6 {[%clk 0:00:53.4]} 7. f4 {[%clk 0:00:53.4]} 7... Nf6 {[%clk 0:00:52.3]} 8. f5 {[%clk 0:00:52.6]} 8... Bb4+ {[%clk 0:00:51.6]} 9. c3 {[%clk 0:00:50.7]} 9... Bc5 {[%clk 0:00:50.3]} 10. fxe6 {[%clk 0:00:49.9]} 10... fxe6 {[%clk 0:00:49.6]} 11. Nf7+ {[%clk 0:00:48.7]} 11... Ke7 {[%clk 0:00:48.8]} 12. Nxh8 {[%clk 0:00:48.1]} 12... Nbd7 {[%clk 0:00:47.9]} 13. Be2 {[%clk 0:00:47]} 13... Ne5 {[%clk 0:00:47.2]} 14. Nd2 {[%clk 0:00:45.9]} 14... Rxh8 {[%clk 0:00:46.1]} 15. Nf3 {[%clk 0:00:45]} 15... Nxf3+ {[%clk 0:00:43.4]} 16. Bxf3 {[%clk 0:00:44.7]} 16... Rd8 {[%clk 0:00:41.3]} 17. Bd2 {[%clk 0:00:42.9]} 17... g5 {[%clk 0:00:37.5]} 18. O-O-O {[%clk 0:00:42.3]} 18... h6 {[%clk 0:00:36.4]} 19. g3 {[%clk 0:00:38.8]} 19... a6 {[%clk 0:00:35]} 20. h4 {[%clk 0:00:37.8]} 20... g4 {[%clk 0:00:33.1]} 21. Bg2 {[%clk 0:00:37.3]} 21... h5 {[%clk 0:00:32.4]} 22. Rhf1 {[%clk 0:00:35.5]} 22... b5 {[%clk 0:00:28.9]} 23. Bg5 {[%clk 0:00:35.1]} 23... Rf8 {[%clk 0:00:26.9]} 24. b4 {[%clk 0:00:29.5]} 24... e5 {[%clk 0:00:26.2]} 25. bxc5 {[%clk 0:00:27.5]} 1-0

[Event "Live Chess"]
[Site "Chess.com"]
[Date "2010.12.08"]
[Round "-"]
[White "chessmuntu"]
[Black "hipposcottimus"]
[Result "0-1"]
[CurrentPosition "3r3k/6p1/b5p1/5p2/P3p3/7P/3r1PP1/R5K1 w - -"]
[Timezone "UTC"]
[ECO "D10"]
[ECOUrl "https://www.chess.com/openings/Slav-Defense-3.e3"]
[UTCDate "2010.12.08"]
[UTCTime "02:21:15"]
[WhiteElo "1577"]
[BlackElo "1694"]
[TimeControl "60"]
[Termination "hipposcottimus won on time"]
[StartTime "02:21:15"]
[EndDate "2010.12.08"]
[EndTime "02:23:10"]
[Link "https://www.chess.com/game/live/75113905"]

1. d4 {[%clk 0:01:00]} 1... d5 {[%clk 0:01:00]} 2. c4 {[%clk 0:01:00]} 2... c6 {[%clk 0:00:59.8]} 3. e3 {[%clk 0:00:58.9]} 3... Nd7 {[%clk 0:00:58.6]} 4. c5 {[%clk 0:00:58.2]} 4... b6 {[%clk 0:00:57.3]} 5. b4 {[%clk 0:00:57.1]} 5... a5 {[%clk 0:00:55.8]} 6. bxa5 {[%clk 0:00:52.3]} 6... bxc5 {[%clk 0:00:55.3]} 7. dxc5 {[%clk 0:00:49.9]} 7... Qxa5+ {[%clk 0:00:54.5]} 8. Bd2 {[%clk 0:00:48.6]} 8... Qxc5 {[%clk 0:00:54.1]} 9. Nc3 {[%clk 0:00:46.9]} 9... Qd6 {[%clk 0:00:53.8]} 10. Bd3 {[%clk 0:00:45.1]} 10... e5 {[%clk 0:00:53]} 11. Nge2 {[%clk 0:00:43.1]} 11... e4 {[%clk 0:00:52.2]} 12. Bc2 {[%clk 0:00:42.2]} 12... f5 {[%clk 0:00:51.5]} 13. O-O {[%clk 0:00:40.7]} 13... Ngf6 {[%clk 0:00:50.8]} 14. Nf4 {[%clk 0:00:40.2]} 14... Be7 {[%clk 0:00:49.8]} 15. a4 {[%clk 0:00:36.2]} 15... d4 {[%clk 0:00:49.2]} 16. exd4 {[%clk 0:00:34.1]} 16... Qxd4 {[%clk 0:00:48.4]} 17. Nce2 {[%clk 0:00:30.6]} 17... Qd6 {[%clk 0:00:46.8]} 18. Bb3 {[%clk 0:00:25.8]} 18... Nd5 {[%clk 0:00:45.7]} 19. Nxd5 {[%clk 0:00:24.3]} 19... cxd5 {[%clk 0:00:45.1]} 20. Nf4 {[%clk 0:00:23.2]} 20... O-O {[%clk 0:00:42.7]} 21. Nxd5 {[%clk 0:00:20.8]} 21... Kh8 {[%clk 0:00:41.2]} 22. Nxe7 {[%clk 0:00:19.6]} 22... Qxe7 {[%clk 0:00:40.1]} 23. Qh5 {[%clk 0:00:17.2]} 23... Ba6 {[%clk 0:00:37]} 24. Rfc1 {[%clk 0:00:15.4]} 24... Nc5 {[%clk 0:00:35.5]} 25. Bd5 {[%clk 0:00:12.1]} 25... Rad8 {[%clk 0:00:33.3]} 26. Bc6 {[%clk 0:00:07.8]} 26... Rxd2 {[%clk 0:00:32.5]} 27. Rxc5 {[%clk 0:00:05.6]} 27... Qxc5 {[%clk 0:00:29.7]} 28. Be8 {[%clk 0:00:03.5]} 28... Qd6 {[%clk 0:00:24]} 29. Bg6 {[%clk 0:00:02.4]} 29... Qxg6 {[%clk 0:00:21.3]} 30. Qxg6 {[%clk 0:00:01]} 30... hxg6 {[%clk 0:00:20.7]} 31. h3 {[%clk 0:00:01]} 31... Rfd8 {[%clk 0:00:19.7]} 0-1

[Event "Live Chess"]
[Site "Chess.com"]
[Date "2010.12.08"]
[Round "-"]
[White "hipposcottimus"]
[Black "chessmuntu"]
[Result "1-0"]
[CurrentPosition "2rq1k1r/1p1nn1p1/p2NNpp1/3pP3/3P1P2/8/PP1Q2PP/R4RK1 b - -"]
[Timezone "UTC"]
[ECO "B12"]
[ECOUrl "https://www.chess.com/openings/Caro-Kann-Defense-Advance-Variation-3...Bf5-4.c4"]
[UTCDate "2010.12.08"]
[UTCTime "02:20:19"]
[WhiteElo "1688"]
[BlackElo "1583"]
[TimeControl "60"]
[Termination "hipposcottimus won by resignation"]
[StartTime "02:20:19"]
[EndDate "2010.12.08"]
[EndTime "02:21:02"]
[Link "https://www.chess.com/game/live/75113698"]

1. e4 {[%clk 0:01:00]} 1... c6 {[%clk 0:01:00]} 2. d4 {[%clk 0:00:58.6]} 2... d5 {[%clk 0:01:00]} 3. e5 {[%clk 0:00:58.4]} 3... Bf5 {[%clk 0:00:58.9]} 4. c4 {[%clk 0:00:58.2]} 4... Nd7 {[%clk 0:00:58.7]} 5. cxd5 {[%clk 0:00:57]} 5... cxd5 {[%clk 0:00:58.2]} 6. Nc3 {[%clk 0:00:56.7]} 6... e6 {[%clk 0:00:58.2]} 7. Bd3 {[%clk 0:00:55.5]} 7... Bg6 {[%clk 0:00:56.8]} 8. Bxg6 {[%clk 0:00:54.9]} 8... hxg6 {[%clk 0:00:56.3]} 9. f4 {[%clk 0:00:54.6]} 9... Bb4 {[%clk 0:00:55.2]} 10. Nf3 {[%clk 0:00:53.8]} 10... Ne7 {[%clk 0:00:54.7]} 11. Bd2 {[%clk 0:00:53.2]} 11... Rb8 {[%clk 0:00:53.4]} 12. Nb5 {[%clk 0:00:52]} 12... Bxd2+ {[%clk 0:00:50.9]} 13. Qxd2 {[%clk 0:00:51.6]} 13... a6 {[%clk 0:00:48.4]} 14. Nd6+ {[%clk 0:00:49.1]} 14... Kf8 {[%clk 0:00:45.5]} 15. O-O {[%clk 0:00:48.8]} 15... Rc8 {[%clk 0:00:41.3]} 16. Ng5 {[%clk 0:00:48.2]} 16... f6 {[%clk 0:00:38.3]} 17. Nxe6+ {[%clk 0:00:47.9]} 1-0

[Event "Live Chess"]
[Site "Chess.com"]
[Date "2010.12.08"]
[Round "-"]
[White "chessmuntu"]
[Black "hipposcottimus"]
[Result "0-1"]
[CurrentPosition "2r2rk1/p4ppp/4b3/5N2/3pQ3/n2K4/5PPP/1R3B1R w - -"]
[Timezone "UTC"]
[ECO "D10"]
[ECOUrl "https://www.chess.com/openings/Slav-Defense-Exchange-Variation-3...cxd5-4.Nc3"]
[UTCDate "2010.12.08"]
[UTCTime "02:18:07"]
[WhiteElo "1589"]
[BlackElo "1682"]
[TimeControl "60"]
[Termination "hipposcottimus won on time"]
[StartTime "02:18:07"]
[EndDate "2010.12.08"]
[EndTime "02:20:06"]
[Link "https://www.chess.com/game/live/75113219"]

1. d4 {[%clk 0:01:00]} 1... d5 {[%clk 0:01:00]} 2. c4 {[%clk 0:01:00]} 2... c6 {[%clk 0:00:59.7]} 3. cxd5 {[%clk 0:00:58.7]} 3... cxd5 {[%clk 0:00:58]} 4. Nc3 {[%clk 0:00:58.7]} 4... e6 {[%clk 0:00:56.7]} 5. Bf4 {[%clk 0:00:58.3]} 5... Nf6 {[%clk 0:00:56.2]} 6. e3 {[%clk 0:00:57.8]} 6... Bb4 {[%clk 0:00:55.8]} 7. Ne2 {[%clk 0:00:56]} 7... Nc6 {[%clk 0:00:55.5]} 8. a3 {[%clk 0:00:55.3]} 8... Ba5 {[%clk 0:00:53.9]} 9. b4 {[%clk 0:00:54.1]} 9... Nxb4 {[%clk 0:00:53.6]} 10. axb4 {[%clk 0:00:52.8]} 10... Bxb4 {[%clk 0:00:53.4]} 11. Rb1 {[%clk 0:00:50.3]} 11... Ba5 {[%clk 0:00:50.8]} 12. Qa4+ {[%clk 0:00:49.4]} 12... Nd7 {[%clk 0:00:45.2]} 13. Ng3 {[%clk 0:00:43]} 13... Bxc3+ {[%clk 0:00:43.9]} 14. Ke2 {[%clk 0:00:39.6]} 14... Qc7 {[%clk 0:00:39.8]} 15. Bxc7 {[%clk 0:00:38.2]} 15... O-O {[%clk 0:00:35.3]} 16. Kd3 {[%clk 0:00:29.2]} 16... Bxd4 {[%clk 0:00:33.6]} 17. exd4 {[%clk 0:00:27.8]} 17... b6 {[%clk 0:00:33.3]} 18. Bxb6 {[%clk 0:00:26.1]} 18... e5 {[%clk 0:00:32.6]} 19. Qb5 {[%clk 0:00:23.6]} 19... Nxb6 {[%clk 0:00:31.1]} 20. dxe5 {[%clk 0:00:21]} 20... Nd7 {[%clk 0:00:29.3]} 21. Qb3 {[%clk 0:00:18.1]} 21... Nxe5+ {[%clk 0:00:28.1]} 22. Kd4 {[%clk 0:00:15.9]} 22... Nc6+ {[%clk 0:00:25.8]} 23. Ke3 {[%clk 0:00:13.4]} 23... Be6 {[%clk 0:00:24.6]} 24. Kd2 {[%clk 0:00:11.8]} 24... d4 {[%clk 0:00:23.9]} 25. Qb7 {[%clk 0:00:09.4]} 25... Na5 {[%clk 0:00:20.7]} 26. Qe4 {[%clk 0:00:05]} 26... Nc4+ {[%clk 0:00:19.4]} 27. Kd3 {[%clk 0:00:03.1]} 27... Rac8 {[%clk 0:00:18.3]} 28. Nf5 {[%clk 0:00:01.1]} 28... Na3 {[%clk 0:00:14.8]} 0-1

[Event "Live Chess"]
[Site "Chess.com"]
[Date "2010.12.08"]
[Round "-"]
[White "hipposcottimus"]
[Black "chessmuntu"]
[Result "0-1"]
[CurrentPosition "2r4k/1b2nQpn/p3p3/1p6/3P1P2/1N6/PP4qP/4RRK1 w - -"]
[Timezone "UTC"]
[ECO "B13"]
[ECOUrl "https://www.chess.com/openings/Caro-Kann-Defense-Panov-Attack"]
[UTCDate "2010.12.08"]
[UTCTime "02:16:53"]
[WhiteElo "1676"]
[BlackElo "1595"]
[TimeControl "60"]
[Termination "chessmuntu won by checkmate"]
[StartTime "02:16:53"]
[EndDate "2010.12.08"]
[EndTime "02:17:53"]
[Link "https://www.chess.com/game/live/75112934"]

1. e4 {[%clk 0:01:00]} 1... c6 {[%clk 0:01:00]} 2. d4 {[%clk 0:00:59]} 2... d5 {[%clk 0:01:00]} 3. exd5 {[%clk 0:00:58.8]} 3... cxd5 {[%clk 0:00:58.1]} 4. c4 {[%clk 0:00:57.1]} 4... a6 {[%clk 0:00:58.1]} 5. cxd5 {[%clk 0:00:55.9]} 5... Qxd5 {[%clk 0:00:57.3]} 6. Nc3 {[%clk 0:00:55.7]} 6... Qd8 {[%clk 0:00:56]} 7. Nf3 {[%clk 0:00:55.1]} 7... e6 {[%clk 0:00:55.6]} 8. Be2 {[%clk 0:00:54.8]} 8... Bb4 {[%clk 0:00:55.2]} 9. O-O {[%clk 0:00:54.6]} 9... Ne7 {[%clk 0:00:54.6]} 10. Bd2 {[%clk 0:00:53.5]} 10... O-O {[%clk 0:00:54.2]} 11. Ne4 {[%clk 0:00:52]} 11... Bxd2 {[%clk 0:00:53.1]} 12. Nexd2 {[%clk 0:00:51.5]} 12... Nd7 {[%clk 0:00:53.1]} 13. Nb3 {[%clk 0:00:51.1]} 13... b5 {[%clk 0:00:52.3]} 14. Bd3 {[%clk 0:00:50.8]} 14... Bb7 {[%clk 0:00:51.6]} 15. Ng5 {[%clk 0:00:50.1]} 15... Rc8 {[%clk 0:00:50.7]} 16. Bxh7+ {[%clk 0:00:48.9]} 16... Kh8 {[%clk 0:00:48.8]} 17. Qh5 {[%clk 0:00:48.4]} 17... Nf6 {[%clk 0:00:43]} 18. Nxf7+ {[%clk 0:00:42.2]} 18... Rxf7 {[%clk 0:00:41.1]} 19. Qxf7 {[%clk 0:00:40]} 19... Nxh7 {[%clk 0:00:39.1]} 20. f4 {[%clk 0:00:36.4]} 20... Qd5 {[%clk 0:00:37.9]} 21. Rae1 {[%clk 0:00:34.1]} 21... Qxg2# {[%clk 0:00:36.8]} 0-1